bitfinex-derivatives/quotes_SOLF0:USTF0_20250228
["timestamp","ask_amount","ask_price","bid_price","bid_amount"]
[1740733407630,0.05790854,131.41,131.39,0.05832468]
[1740733407826,0.05790854,131.41,131.31,3.2399]
[1740733408231,16.3996,131.45,131.39,0.04871986]
[1740733408431,0.05684309,131.37,131.32,6.6253]
[1740733408631,16.3996,131.45,131.32,6.6253]
[1740733408931,0.05238566,131.36,131.33,0.05449946]
[1740733409126,16.3996,131.45,131.32,6.6253]
[1740733409327,0.05347083,131.36,131.33,0.05339639]
[1740733409723,0.05347083,131.36,131.32,6.6253]
[1740733409930,7.6203,131.35,131.33,0.05059089]
[1740733410236,0.05347083,131.36,131.33,0.05059089]
[1740733411731,7.6205,131.34,131.33,0.05059089]
[1740733411929,0.05347083,131.36,131.33,0.05059089]
[1740733412632,0.05347083,131.36,131.34,7.6205]
[1740733413636,0.05347083,131.36,131.34,10.7446]
[1740733413832,0.05347083,131.36,131.33,0.05059089]
[1740733414629,7.62,131.35,131.33,0.05059089]
[1740733415731,7.6205,131.34,131.33,0.05059089]
[1740733415926,0.05347083,131.36,131.33,0.05059089]
[1740733416834,7.67297083,131.36,131.33,0.05059089]
[1740733417132,0.05347083,131.36,131.33,0.05059089]
[1740733417530,0.05347083,131.36,131.27,10.7168]
[1740733417727,3.20817083,131.36,131.26,3.4825]
[1740733417926,3.1547,131.36,131.26,3.4825]
[1740733418134,3.1547,131.36,131.26,11.1072]
[1740733418633,7.6226,131.31,131.26,11.1072]
[1740733418830,0.05100493,131.32,131.3,0.05169805]
[1740733419031,0.05100493,131.32,131.25,7.6255]
[1740733419231,7.6232,131.3,131.25,7.6255]
[1740733419537,0.04910093,131.3,131.25,7.6255]
[1740733419737,0.04910093,131.3,131.26,0.05159062]
[1740733421340,7.6238,131.29,131.26,0.05159062]
[1740733421737,0.04910093,131.3,131.26,0.05159062]
[1740733421937,7.67230093,131.3,131.26,0.05159062]
[1740733422239,0.04910093,131.3,131.26,0.05159062]
[1740733422434,7.67210093,131.3,131.26,0.05159062]
[1740733422636,7.67210093,131.3,131.26,7.67619062]
[1740733422839,0.04910093,131.3,131.26,0.05159062]
[1740733423039,0.04910093,131.3,131.27,7.624]
[1740733423240,0.04910093,131.3,131.26,0.05159062]
[1740733425041,0.04910093,131.3,131.27,7.6244]
[1740733425543,0.04910093,131.3,131.26,7.67649062]
[1740733425944,0.04910093,131.3,131.26,0.05159062]
[1740733426243,7.6239,131.29,131.26,0.05159062]
[1740733426542,0.04910093,131.3,131.26,0.05159062]
[1740733427243,7.6245,131.27,131.26,0.05159062]
[1740733428746,7.6267,131.24,131.2,7.6284]
[1740733429138,15.8437,131.29,131.19,7.629]
[1740733429345,7.6271,131.23,131.18,9.0318]
[1740733429646,15.8437,131.29,131.18,5.999]
[1740733429843,15.8437,131.29,131.14,3.1191]
[1740733430046,0.05663108,131.22,131.19,0.05357701]
[1740733430249,12.91663108,131.22,131.19,0.05357701]
[1740733430437,12.86,131.22,131.11,5.9624]
[1740733430638,12.91657469,131.22,131.19,0.05051291]
[1740733430940,3.0037,131.21,131.13,7.6325]
[1740733431144,3.0037,131.21,131.11,9.0815]
[1740733431345,5.0337,131.21,131.11,9.0815]
[1740733432041,0.05512443,131.17,131.15,0.0484032]
[1740733432248,2.03,131.21,131.15,0.0484032]
[1740733433447,0.05441645,131.19,131.15,0.0484032]
[1740733434846,2.03,131.21,131.18,7.6298]
[1740733435050,2.03,131.21,131.15,0.0484032]
[1740733435253,2.03,131.21,131.11,9.0815]
[1740733435850,2.03,131.21,131.2,7.6286]
[1740733436252,2.07816251,131.21,131.2,7.6286]
[1740733436751,9.85,131.22,131.21,7.628]
[1740733437046,9.85,131.22,131.12,12.82]
[1740733437450,9.85,131.22,131.2,7.6284]
[1740733438154,9.90415757,131.22,131.2,0.05679383]
[1740733438744,7.628,131.21,131.2,0.05679383]
[1740733438944,9.90415757,131.22,131.2,0.05679383]
[1740733439446,7.628,131.21,131.2,0.05679383]
[1740733440454,7.6301,131.18,131.14,7.6321]
[1740733440754,9.85,131.22,131.11,9.0815]
[1740733441154,16.37,131.21,131.11,9.0815]
[1740733441557,9.78,131.25,131.12,15.2664]
[1740733441855,9.78,131.25,131.15,0.05270573]
[1740733442050,9.78,131.25,131.24,7.6263]
[1740733442248,9.78,131.25,131.15,12.82]
[1740733442656,9.78,131.25,131.21,7.6279]
[1740733443055,9.78,131.25,131.19,0.05495174]
[1740733443257,0.05851942,131.24,131.15,12.82]
[1740733443455,0.05851942,131.24,131.21,0.0515021]
[1740733443750,9.78,131.25,131.22,7.627]
[1740733443950,0.05560849,131.24,131.21,0.05577698]
[1740733444151,9.78,131.25,131.21,0.05577698]
[1740733444356,0.04833269,131.24,131.21,0.05577698]
[1740733445752,7.6274,131.22,131.16,7.6308]
[1740733446055,25.6201,131.25,131.13,202.53471283]
[1740733446446,9.78,131.25,131.13,202.53471283]
[1740733446853,0.2924,131.25,131.24,7.6263]
[1740733447055,2.96e-05,131.2,131.18,0.05536511]
[1740733447553,0.2924,131.25,131.13,372.32342312]
[1740733448052,0.2924,131.25,131.22,7.6274]
[1740733448454,0.2924,131.25,131.18,0.05551396]
[1740733448752,0.34128219,131.25,131.13,372.32342312]
[1740733448957,0.34128219,131.25,131.2,0.05606]
[1740733449260,0.2924,131.25,131.2,0.05606]
[1740733449560,0.05810714,131.24,131.2,0.05606]
[1740733449759,7.628,131.22,131.2,0.05606]
[1740733449958,0.05810714,131.24,131.2,0.05606]
[1740733450154,7.628,131.21,131.2,0.05606]
[1740733450358,0.05810714,131.24,131.2,0.05606]
[1740733450955,0.05810714,131.24,131.2,7.68426]
[1740733451161,0.05810714,131.24,131.2,0.05606]
[1740733451555,7.6272,131.23,131.2,0.05606]
[1740733451756,0.05810714,131.24,131.2,0.05606]
[1740733452659,7.6279,131.22,131.2,0.05606]
[1740733452861,0.05810714,131.24,131.2,0.05606]
[1740733453060,0.05810714,131.24,131.22,7.6271]
[1740733453562,0.05810714,131.24,131.2,0.05606]
[1740733454660,7.6272,131.23,131.2,0.05606]
[1740733454856,0.05810714,131.24,131.2,0.05606]
[1740733456659,0.05810714,131.24,131.23,7.6269]
[1740733456855,0.05810714,131.24,131.2,0.05606]
[1740733456856,33.88,131.26,131.21,8.8022]
[1740733458174,0.05470019,131.25,131.21,8.8022]
[1740733458769,0.05470019,131.25,131.23,7.6264]
[1740733458971,0.05470019,131.25,131.21,8.8022]
[1740733459273,7.6264,131.24,131.22,0.0552071]
[1740733459473,0.05470019,131.25,131.22,0.0552071]
[1740733459669,33.88,131.26,131.15,18.8066]
[1740733459870,0.04988548,131.25,131.22,0.05630842]
[1740733460070,12.9,131.25,131.15,18.8066]
[1740733460274,12.95332792,131.25,131.24,7.6263]
[1740733460473,12.9,131.25,131.24,7.6263]
[1740733460665,12.9,131.25,131.15,18.8066]
[1740733460666,12.9,131.25,131.23,0.05129627]
[1740733460870,12.9,131.25,131.15,18.8066]
[1740733461080,12.95168835,131.25,131.23,0.04902612]
[1740733461374,12.95168835,131.25,131.15,18.8066]
[1740733461375,12.9,131.25,131.15,5.9866]
[1740733461572,18.5791,131.25,131.15,5.9866]
[1740733462163,7.6284,131.21,131.16,7.6305]
[1740733462363,7.6284,131.21,131.15,5.9866]
[1740733462364,18.5791,131.25,131.15,2.941]
[1740733462569,0.05686846,131.2,131.17,0.0567539]
[1740733462969,0.05686846,131.2,131.15,7.6311]
[1740733463170,0.05686846,131.2,131.17,0.05464659]
[1740733464175,0.05686846,131.2,131.17,7.68494659]
[1740733464872,0.05686846,131.2,131.17,0.05464659]
[1740733465377,12.9,131.25,131.17,0.05464659]
[1740733465680,12.9,131.25,131.23,7.6265]
[1740733466381,12.9,131.25,131.13,15.7722]
[1740733466574,12.94685785,131.25,131.23,0.05837157]
[1740733466881,0.04685785,131.2,131.13,15.7722]
[1740733467076,12.9,131.25,131.23,0.05811854]
[1740733467278,12.9,131.25,131.13,15.7722]
[1740733467478,12.9,131.25,131.21,7.6276]
[1740733467677,12.9,131.25,131.13,15.7722]
[1740733468178,12.9,131.25,131.21,7.6276]
[1740733468379,12.9,131.25,131.13,15.7722]
[1740733468680,18.12,131.24,131.2,0.04893142]
[1740733469677,18.12,131.24,131.22,7.627]
[1740733470179,18.12,131.24,131.23,7.6269]
[1740733470785,18.12,131.24,131.21,5.549]
[1740733471084,18.12,131.24,131.2,0.04893142]
[1740733472185,25.7464,131.24,131.2,0.04893142]
[1740733472487,18.12,131.24,131.2,0.04893142]
[1740733472788,25.7467,131.24,131.2,0.04893142]
[1740733472977,18.12,131.24,131.2,0.04893142]
[1740733474485,21.0237,131.24,131.2,0.04893142]
[1740733475686,7.628,131.21,131.2,0.04893142]
[1740733476586,7.6276,131.22,131.2,0.04893142]
[1740733476990,21.0237,131.24,131.2,0.04893142]
[1740733477186,7.6271,131.23,131.2,0.04893142]
[1740733477380,21.0237,131.24,131.2,0.04893142]
[1740733477578,7.628,131.21,131.2,0.04893142]
[1740733479684,7.6298,131.18,131.11,202.55578679]
[1740733479887,2.9852,131.23,131.14,7.6319]
[1740733480083,7.6305,131.17,131.11,3.0636]
[1740733480291,7.6305,131.17,131.13,7.6323]
[1740733480492,12.92,131.22,131.11,3.0636]
[1740733480884,0.04893142,131.18,131.15,0.0581782]
[1740733481392,7.6308,131.17,131.15,0.0581782]
[1740733481694,0.04893142,131.18,131.15,0.0581782]
[1740733481889,7.67893142,131.18,131.15,0.0581782]
[1740733483189,7.6304,131.17,131.15,0.0581782]
[1740733483395,0.04893142,131.18,131.15,0.0581782]
[1740733484290,0.04893142,131.18,131.15,7.6893782]
[1740733485192,7.67903142,131.18,131.15,0.0581782]
[1740733485487,0.04893142,131.18,131.15,0.0581782]
[1740733485688,0.04893142,131.18,131.17,7.6304]
[1740733485998,3.142e-05,131.18,131.17,7.6304]
[1740733487694,6.50943142,131.2,131.19,7.6292]
[1740733488093,3.142e-05,131.2,131.19,7.6292]
[1740733488487,3.142e-05,131.2,131.16,8.6694]
[1740733488896,3.142e-05,131.2,131.17,0.04927954]
[1740733489098,3.142e-05,131.2,131.18,7.6298]
[1740733489293,3.142e-05,131.2,131.17,0.04927954]
[1740733490697,7.62903142,131.2,131.17,0.04927954]
[1740733491198,7.6296,131.19,131.17,0.04927954]
[1740733491899,3.142e-05,131.2,131.17,0.04927954]
[1740733492496,7.62903142,131.2,131.17,0.04927954]
[1740733492700,3.142e-05,131.2,131.17,0.04927954]
[1740733493594,7.6293,131.19,131.17,0.04927954]
[1740733493791,3.142e-05,131.2,131.17,0.04927954]
[1740733494295,3.142e-05,131.2,131.11,8.788]
[1740733494601,12.78003142,131.2,131.11,8.788]
[1740733494799,35.73003142,131.2,131.11,5.8832]
[1740733495000,35.73003142,131.2,131.06,2.9352]
[1740733495205,35.73003142,131.2,131.06,8.6663]
[1740733495400,0.04927954,131.14,131.12,0.05393382]
[1740733495699,35.73003142,131.2,131.06,8.6663]
[1740733495899,7.68167954,131.14,131.12,0.04949091]
[1740733496096,0.04927954,131.14,131.12,0.04949091]
[1740733496400,0.04927954,131.14,131.12,0.04959587]
[1740733496699,0.04927954,131.14,131.06,8.6663]
[1740733496896,22.95,131.18,131.06,8.6663]
[1740733497102,22.95,131.16,131.06,8.6663]
[1740733497298,2.8078,131.15,131.06,8.6663]
[1740733497695,0.05654964,131.12,131.09,0.05791043]
[1740733498199,7.68994964,131.12,131.09,0.05791043]
[1740733499992,0.05654964,131.12,131.09,0.05791043]
[1740733502401,0.05654964,131.12,131.11,7.6338]
[1740733502809,0.05654964,131.12,131.09,0.05791043]
[1740733503013,0.05654964,131.12,131.09,7.69251043]
[1740733503912,0.05654964,131.12,131.1,7.634]
[1740733504207,0.05654964,131.12,131.09,0.05791043]
[1740733504608,7.6343,131.11,131.09,0.05791043]
[1740733508104,0.05654964,131.12,131.09,0.05791043]
[1740733508308,0.05654964,131.12,131.02,8.7328]
[1740733508309,211.43654964,131.12,130.95,39.72130779]
[1740733508510,207.61654964,131.12,130.95,39.72130779]
[1740733508710,207.56,131.12,130.99,7.6407]
[1740733509014,190.0,131.11,130.99,7.6407]
[1740733509213,7.6363,131.07,131.02,7.6391]
[1740733509512,0.04945797,131.06,131.04,0.05113097]
[1740733510017,7.68665797,131.06,131.04,0.05113097]
[1740733510216,0.04945797,131.06,131.04,0.05113097]
[1740733511415,7.68625797,131.06,131.04,0.05113097]
[1740733512009,0.04945797,131.06,131.04,0.05113097]
[1740733512720,0.04945797,131.06,131.04,7.68903097]
[1740733513417,0.04945797,131.06,131.04,0.05113097]
[1740733515516,0.04945797,131.06,131.05,7.6373]
[1740733515714,12.95,131.08,131.04,0.05113097]
[1740733515910,17.0,131.1,131.04,0.05113097]
[1740733516118,17.0,131.1,131.09,7.635]
[1740733516710,17.0,131.1,131.06,2.9538]
[1740733517023,17.0,131.1,131.08,0.05467476]
[1740733517210,12.4182,131.1,131.08,0.05467476]
[1740733517410,17.48,131.14,131.08,0.05467476]
[1740733517610,35.9,131.14,131.08,0.05467476]
[1740733518016,35.9,131.14,131.13,7.6327]
[1740733518323,35.9,131.14,131.06,2.9538]
[1740733518814,35.9,131.14,131.11,7.6337]
[1740733519013,0.04953216,131.11,131.09,0.05434598]
[1740733519224,35.9,131.14,131.09,0.05434598]
[1740733519419,0.31,131.15,131.09,3.87434598]
[1740733519619,0.31,131.15,131.09,0.05434598]
[1740733519818,0.31,131.15,131.06,2.9538]
[1740733520125,0.31,131.15,131.14,7.6321]
[1740733520518,0.31,131.15,131.12,7.6327]
[1740733520715,0.31,131.15,131.06,172.74251029]
[1740733520910,0.31,131.15,131.12,0.05771827]
[1740733520911,7.9417,131.15,131.12,0.05771827]
[1740733521423,0.31,131.15,131.12,0.05153721]
[1740733521721,7.6327,131.13,131.12,0.05153721]
[1740733522117,0.31,131.15,131.12,0.05153721]
[1740733522717,7.6327,131.13,131.12,0.05153721]
[1740733522919,0.31,131.15,131.12,0.05153721]
[1740733523423,7.6325,131.14,131.12,0.05153721]
[1740733523623,0.31,131.15,131.12,0.05153721]
[1740733524029,7.942,131.15,131.12,0.05153721]
[1740733524221,0.31,131.15,131.12,0.05153721]
[1740733525126,0.31,131.15,131.14,7.6321]
[1740733525324,220.8818,131.21,131.13,2.9038]
[1740733525526,220.8818,131.21,131.13,5.8814]
[1740733525720,7.6287,131.2,131.13,5.8814]
[1740733525921,7.6287,131.2,131.16,0.05425967]
[1740733526321,213.2534,131.21,131.16,0.05425967]
[1740733526925,7.6294,131.19,131.16,0.05425967]
[1740733527831,213.2534,131.21,131.16,0.05425967]
[1740733528924,7.6287,131.2,131.16,7.68515967]
[1740733529533,7.6298,131.18,131.16,0.05425967]
[1740733529732,213.2534,131.21,131.16,0.05425967]
[1740733529931,236.1534,131.21,131.08,2.8834]
[1740733530132,236.1534,131.21,131.09,7.6346]
[1740733530531,213.2534,131.21,131.08,2.8834]
[1740733531128,0.05615135,131.16,131.13,0.0515654]
[1740733531332,7.6321,131.14,131.09,7.6348]
[1740733531527,7.6321,131.14,131.13,0.0574505]
[1740733531731,0.05233417,131.13,131.08,2.8834]
[1740733531934,7.6332,131.13,131.12,0.05045224]
[1740733532134,0.05307156,131.12,131.08,10.5189]
[1740733532324,0.05307156,131.12,131.11,0.05387671]
[1740733533128,3.0495,131.2,131.11,3.87387671]
[1740733533329,3.0495,131.2,131.08,2.8834]
[1740733533730,10.6785,131.2,131.08,2.8834]
[1740733533931,3.0495,131.2,131.08,2.8834]
[1740733534133,7.63,131.18,131.13,7.6326]
[1740733534336,7.63,131.18,131.13,7.68949636]
[1740733534836,3.0495,131.2,131.13,0.05689636]
[1740733535336,7.6307,131.17,131.13,0.05689636]
[1740733535537,3.0495,131.2,131.13,0.05689636]
[1740733536239,3.0495,131.2,131.05,2.7559]
[1740733536731,7.6325,131.14,131.09,7.6348]
[1740733537137,3.0495,131.2,131.05,2.7559]
[1740733537338,0.05081884,131.13,131.12,7.6332]
[1740733537538,7.6308,131.17,131.05,2.7559]
[1740733537835,0.05093483,131.14,131.12,7.6329]
[1740733538041,0.05093483,131.14,131.11,0.05860438]
[1740733539239,0.05093483,131.14,131.13,7.6327]
[1740733539435,7.6287,131.2,131.12,3.0397]
[1740733539739,213.2534,131.21,131.12,3.0397]
[1740733540241,213.2534,131.21,131.13,3.0487]
[1740733540242,5.6734,131.21,131.13,3.0487]
[1740733540439,5.6734,131.21,131.17,7.6299]
[1740733541144,5.6734,131.21,131.16,0.05015556]
[1740733542647,7.6313,131.16,131.11,7.6337]
[1740733542850,5.6734,131.21,131.07,3.0487]
[1740733543048,22.9,131.2,131.07,3.0487]
[1740733543848,0.04802649,131.15,131.12,0.05254184]
[1740733544045,0.04802649,131.15,131.07,3.0487]
[1740733544250,22.9,131.2,131.12,0.04799959]
[1740733544450,22.9,131.2,131.1,7.6343]
[1740733544651,0.05733665,131.17,131.05,2.7582]
[1740733544851,7.6326,131.14,131.09,7.6349]
[1740733545050,28.93,131.19,131.09,7.6349]
[1740733545252,28.93,131.19,131.05,2.7582]
[1740733545453,7.6319,131.15,131.11,7.6337]
[1740733545746,28.93,131.19,131.05,2.7582]
[1740733546052,7.6327,131.13,131.12,0.05778302]
[1740733546252,28.93,131.19,131.12,0.05778302]
[1740733546547,0.0577135,131.14,131.12,0.05778302]
[1740733546750,7.6319,131.15,131.12,0.05778302]
[1740733546948,0.0550789,131.14,131.12,0.05778302]
[1740733547154,0.0550789,131.14,131.12,7.69098302]
[1740733547849,0.0550789,131.14,131.13,7.6327]
[1740733550454,0.0550789,131.14,131.12,7.69088302]
[1740733550855,0.0550789,131.14,131.12,0.05778302]
[1740733552457,7.6875789,131.14,131.12,0.05778302]
[1740733553256,0.0550789,131.14,131.12,0.05778302]
[1740733553456,0.0550789,131.14,131.07,7.6358]
[1740733553650,5.7796,131.15,131.06,2.955]
[1740733553852,7.6337,131.12,131.07,7.636]
[1740733554051,5.7796,131.15,131.06,2.955]
[1740733554559,0.049314,131.12,131.09,0.04884783]
[1740733555158,0.049314,131.12,131.09,7.68344783]
[1740733555355,0.049314,131.12,131.09,0.04884783]
[1740733555960,0.049314,131.12,131.11,7.6338]
[1740733556353,7.01,131.17,131.16,7.6309]
[1740733556559,7.01,131.17,131.12,2.4934]
[1740733557055,7.01,131.17,131.1,2.7792]
[1740733557357,7.01,131.17,131.07,12.88]
[1740733557549,0.0518498,131.15,131.12,0.0484704]
[1740733559058,0.0518498,131.15,131.04,5.2726]
[1740733559260,0.0518498,131.15,131.0,12.88]
[1740733559261,15.7365,131.16,131.06,7.6366]
[1740733559560,15.7365,131.16,131.0,15.7119]
[1740733559750,15.7365,131.16,131.06,7.6363]
[1740733559952,15.7365,131.16,131.0,2.8319]
[1740733560461,0.05693667,131.1,131.07,0.05199778]
[1740733560761,7.6337,131.12,131.06,7.6363]
[1740733561058,0.0536494,131.1,131.07,0.05708634]
[1740733561454,5.7783,131.11,131.0,2.8319]
[1740733561651,5.7783,131.11,131.07,0.0514705]
[1740733562056,0.04813723,131.1,131.07,0.0514705]
[1740733562359,0.04813723,131.1,131.05,7.637]
[1740733562561,7.6339,131.11,131.07,0.05441515]
[1740733562761,0.05164579,131.09,131.07,0.05441515]
[1740733562963,218.6783,131.15,131.0,5.6543]
[1740733563157,0.0585739,131.09,131.07,0.05015161]
[1740733563358,0.0585739,131.09,131.0,5.6543]
[1740733563557,7.6367,131.07,131.01,7.6395]
[1740733563763,230.46,131.13,130.97,2.8742]
[1740733564061,190.0,131.12,130.97,2.8742]
[1740733564368,7.636,131.08,131.02,7.6386]
[1740733564567,0.05658526,131.06,131.03,0.04950428]
[1740733564866,212.9,131.12,130.97,2.8742]
[1740733565063,0.0536558,131.06,131.03,0.04852398]
[1740733565265,35.76,131.08,130.94,2.8223]
[1740733565471,225.76,131.08,131.0,10.19915807]
[1740733565768,225.76,131.08,130.99,30.59747422]
[1740733565769,35.76,131.08,130.99,30.59747422]
[1740733565969,35.76,131.08,130.99,2.41007422]
[1740733566167,7.6403,131.0,130.99,2.41007422]
[1740733567167,7.6408,130.99,130.98,27.66861089]
[1740733567359,7.6408,130.99,130.98,15.70211089]
[1740733567563,7.6408,130.99,130.98,15.60701089]
[1740733567564,11.4608,130.99,130.98,15.60701089]
[1740733567867,7.6408,130.99,130.98,1.089e-05]
[1740733571574,7.6403,131.0,130.98,1.089e-05]
[1740733571771,12.90839144,131.01,130.98,1.089e-05]
[1740733572071,0.04839144,131.01,130.98,1.089e-05]
[1740733572274,0.04839144,131.01,130.99,7.6404]
[1740733572773,0.04839144,131.01,130.98,1.089e-05]
[1740733575375,7.6408,131.0,130.98,1.089e-05]
[1740733576073,7.6408,130.99,130.98,1.089e-05]
[1740733577077,20.5008,130.99,130.98,1.089e-05]
[1740733577278,7.6428,130.96,130.91,7.6453]
[1740733577574,7.6428,130.96,130.85,0.80751381]
[1740733577778,7.6428,130.96,130.91,7.6454]
[1740733578385,0.05212761,130.95,130.92,0.05519833]
[1740733580086,397.64,131.02,130.92,0.05519833]
[1740733580282,7.6406,131.0,130.95,7.6428]
[1740733580483,207.64,131.02,130.88,21.4086]
[1740733580781,7.02,131.03,130.99,7.6408]
[1740733580981,7.02,131.03,130.88,21.4086]
[1740733581386,0.05731888,130.97,130.94,0.05028496]
[1740733581788,7.6395,131.02,130.88,21.4086]
[1740733582589,7.64,131.01,130.88,21.4086]
[1740733582789,7.02,131.03,130.88,21.4086]
[1740733582990,0.05425367,130.96,130.94,0.05365395]
[1740733583187,0.05425367,130.96,130.94,7.69705395]
[1740733583391,7.6409,130.99,130.94,7.6434]
[1740733583593,0.04871214,130.96,130.94,7.69506721]
[1740733584090,0.04943245,130.96,130.95,7.6427]
[1740733584487,0.04943245,130.96,130.94,7.69780279]
[1740733584994,0.04943245,130.96,130.94,0.05420279]
[1740733585592,7.6403,131.0,130.95,7.6432]
[1740733586095,7.6412,130.99,130.94,7.6434]
[1740733586295,7.02,131.03,130.94,7.6434]
[1740733586795,0.05178802,131.0,130.97,0.05719364]
[1740733587593,7.6414,130.98,130.97,0.05719364]
[1740733590298,20.521,130.99,130.97,0.05719364]
[1740733590494,12.88,130.99,130.97,0.05719364]
[1740733590895,7.6414,130.98,130.97,0.05719364]
[1740733591804,7.6438,130.94,130.91,7.6454]
[1740733592098,7.6438,130.94,130.88,8.5286]
[1740733592303,7.6447,130.93,130.89,7.6461]
[1740733592897,0.05644566,130.92,130.9,7.70415597]
[1740733593298,0.05644566,130.92,130.9,0.05815597]
[1740733593597,0.05644566,130.92,130.9,7.70405597]
[1740733594000,0.05644566,130.92,130.9,0.05815597]
[1740733594197,7.70184566,130.92,130.9,0.05815597]
[1740733594399,0.05644566,130.92,130.9,0.05815597]
[1740733597806,7.70144566,130.92,130.9,0.05815597]
[1740733598007,7.70144566,130.92,130.88,7.02685998]
[1740733598506,7.6456,130.91,130.88,7.02685998]
[1740733598809,0.05644566,130.92,130.85,0.80751381]
[1740733599010,7.6457,130.91,130.85,0.80751381]
[1740733599200,0.0558255,130.9,130.87,0.05826219]
[1740733599707,0.0558255,130.9,130.89,7.6467]
[1740733600098,7.03,130.93,130.89,7.6467]
[1740733600307,7.03,130.93,130.9,7.646]
[1740733601210,7.03,130.93,130.89,7.6465]
[1740733601211,14.6747,130.93,130.89,7.6465]
[1740733601408,14.72989814,130.93,130.9,0.05472262]
[1740733601706,7.03,130.93,130.9,0.05472262]
[1740733602003,7.08781257,130.93,130.9,0.05472262]
[1740733602305,19.53,130.96,130.95,7.6432]
[1740733602505,10.3561,130.96,130.95,7.6432]
[1740733603208,42.31536511,131.03,130.97,7.6417]
[1740733603410,42.31536511,131.03,130.87,12.84]
[1740733603600,0.05789377,130.97,130.94,0.04798492]
[1740733603805,42.31536511,131.03,130.87,12.84]
[1740733604006,0.04964371,130.97,130.94,0.05309932]
[1740733604200,42.31536511,131.03,130.87,12.84]
[1740733604507,0.05172829,130.97,130.94,0.05595969]
[1740733604708,18.08,131.02,130.91,7.6454]
[1740733605012,0.04833227,130.97,130.94,0.05282799]
[1740733605205,0.04833227,130.97,130.9,7.6459]
[1740733605510,0.04833227,130.97,130.94,0.05131951]
[1740733605807,7.6423,130.97,130.87,12.84]
[1740733606001,7.69093021,130.97,130.94,0.05521364]
[1740733606200,7.6423,130.97,130.92,7.6447]
[1740733606410,7.69867068,130.97,130.94,0.05677809]
[1740733607010,7.6427,130.96,130.94,0.05677809]
[1740733607210,0.05637068,130.97,130.94,0.05677809]
[1740733609109,0.05637068,130.97,130.96,7.6426]
[1740733609309,18.19,131.0,130.95,3.0492]
[1740733609510,18.19,131.0,130.95,5.8813]
[1740733610111,18.19,131.0,130.98,7.6409]
[1740733610305,18.19,131.0,130.95,5.8813]
[1740733610506,18.24621985,131.0,130.98,0.05409442]
[1740733612415,7.6408,130.99,130.98,0.05409442]
[1740733612705,18.24621985,131.0,130.89,2.8633]
[1740733612911,7.6424,130.97,130.92,7.6447]
[1740733613111,18.19,131.0,130.89,2.8633]
[1740733613711,0.05009876,130.96,130.93,0.05592929]
[1740733615316,18.19,131.0,130.93,0.05592929]
[1740733615511,18.19,131.0,130.98,7.6412]
[1740733616008,18.19,131.0,130.9,2.8621]
[1740733616413,0.05141751,130.96,130.94,0.05105081]
[1740733616608,0.05141751,130.96,130.94,7.69445081]
[1740733617115,0.05141751,130.96,130.94,0.05105081]
[1740733618617,18.19,131.0,130.97,7.6416]
[1740733619522,18.19,131.0,130.9,2.8621]
[1740733619718,18.24093797,131.0,130.97,0.05125143]
[1740733619927,18.19,131.0,130.97,7.6415]
[1740733620128,18.24016945,131.0,130.97,7.69678866]
[1740733620319,18.24016945,131.0,130.97,0.05528866]
[1740733621027,2.15076945,131.0,130.99,7.6408]
[1740733621227,18.08,131.02,130.98,5.8444]
[1740733621722,18.08,131.02,131.01,7.6397]
[1740733623627,7.6371,131.06,131.01,7.6397]
[1740733623827,25.53601,131.08,131.01,7.6397]
[1740733624026,25.53601,131.08,131.02,0.04860273]
[1740733624328,48.43601,131.08,130.91,12.8]
[1740733624522,48.43601,131.08,130.97,7.6418]
[1740733624723,7.6395,131.02,130.97,7.6418]
[1740733625127,48.43601,131.08,130.97,7.6418]
[1740733625318,7.6395,131.02,130.97,7.6418]
[1740733625526,0.05141401,131.01,130.98,0.05830441]
[1740733625722,7.6399,131.01,130.91,12.8]
[1740733626233,48.43601,131.08,130.96,7.6422]
[1740733626428,0.05091224,130.97,130.96,7.6422]
[1740733626730,48.43601,131.08,130.96,7.6422]